fUST/lending_fUST_20260403
["ID","MTS","AMOUNT","RATE_DAILY","PERIOD"]
[419328625,1775181047534,-151.0,0.00021918,2]
[419328626,1775181047544,-151.0,0.00021918,2]
[419328627,1775181047553,-229.914511,0.00021918,2]
[419328628,1775181047564,-151.0,0.00021918,2]
[419328629,1775181047573,-151.0,0.00021918,2]
[419328630,1775181047583,-151.0,0.00021918,2]
[419328631,1775181047592,-151.0,0.00021918,2]
[419328632,1775181047601,-151.0,0.00021918,2]
[419328633,1775181047610,-174.205161,0.00021918,2]
[419328634,1775181047618,-151.0,0.00021918,2]
[419328635,1775181047627,-194.0,0.00021918,2]
[419328636,1775181047635,-502.24515,0.00021918,2]
[419328637,1775181047643,-502.24515,0.00021918,2]
[419328638,1775181047651,-502.24515,0.00021918,2]
[419328639,1775181047659,-502.24515,0.00021918,2]
[419328640,1775181047668,-502.24515,0.00021918,2]
[419328641,1775181047677,-502.24515,0.00021918,2]
[419328642,1775181047685,-502.24515,0.00021918,2]
[419328643,1775181047694,-502.24515,0.00021918,2]
[419328644,1775181047703,-502.24515,0.00021918,2]
[419328645,1775181047711,-502.24515,0.00021918,2]
[419328646,1775181047719,-502.24515,0.00021918,2]
[419328647,1775181047727,-502.24515,0.00021918,2]
[419328648,1775181047736,-502.24515,0.00021918,2]
[419328649,1775181047744,-502.24515,0.00021918,2]
[419328650,1775181047753,-249.130334,0.00021918,2]
[419328651,1775181047762,-502.24515,0.00021918,2]
[419328652,1775181047770,-249.130334,0.00021918,2]
[419328653,1775181047779,-151.0,0.00021918,2]
[419328654,1775181047787,-502.245141,0.00021918,2]
[419328655,1775181047796,-249.130334,0.00021918,2]
[419328656,1775181047804,-151.0,0.00021918,2]
[419328657,1775181047813,-249.130334,0.00021918,2]
[419328658,1775181047821,-151.0,0.00021918,2]
[419328659,1775181047829,-151.0,0.00021918,2]
[419328660,1775181047837,-249.130334,0.00021918,2]
[419328661,1775181047845,-249.130334,0.00021918,2]
[419328662,1775181047853,-151.0,0.00021918,2]
[419328663,1775181047861,-249.130334,0.00021918,2]
[419328664,1775181047868,-151.0,0.00021918,2]
[419328665,1775181047877,-249.130334,0.00021918,2]
[419328666,1775181047885,-151.0,0.00021918,2]
[419328667,1775181047893,-297.923781,0.00021918,2]
[419328668,1775181047901,-249.130334,0.00021918,2]
[419328669,1775181047910,-249.130334,0.00021918,2]
[419328670,1775181047919,-249.130334,0.00021918,2]
[419328671,1775181047928,-249.130334,0.00021918,2]
[419328672,1775181047937,-249.130334,0.00021918,2]
[419328673,1775181047946,-249.130334,0.00021918,2]
[419328674,1775181047956,-249.130334,0.00021918,2]
[419328675,1775181047965,-193.234241,0.00021918,2]
[419328676,1775181047974,-199.175656,0.00021918,2]
[419328677,1775181047983,-199.175656,0.00021918,2]
[419328678,1775181047992,-199.175656,0.00021918,2]
[419328679,1775181048002,-199.175656,0.00021918,2]
[419328680,1775181048011,-199.175656,0.00021918,2]
[419328681,1775181048020,-199.175656,0.00021918,2]
[419328682,1775181048029,-199.175656,0.00021918,2]
[419328683,1775181048038,-199.175656,0.00021918,2]
[419328684,1775181048047,-199.175656,0.00021918,2]
[419328685,1775181048056,-199.175656,0.00021918,2]
[419328686,1775181048066,-199.175656,0.00021918,2]
[419328687,1775181048075,-199.175656,0.00021918,2]
[419328688,1775181048085,-199.175656,0.00021918,2]
[419328689,1775181048094,-199.175656,0.00021918,2]
[419328690,1775181048104,-199.175656,0.00021918,2]
[419328691,1775181048113,-199.175663,0.00021918,2]
[419328692,1775181048122,-249.130341,0.00021918,2]
[419328693,1775181048131,-151.0,0.00021918,2]
[419328694,1775181048140,-151.0,0.00021918,2]
[419328695,1775181048149,-151.0,0.00021918,2]
[419328696,1775181048159,-151.0,0.00021918,2]
[419328697,1775181048168,-151.0,0.00021918,2]
[419328698,1775181048178,-151.0,0.00021918,2]
[419328699,1775181048187,-151.0,0.00021918,2]
[419328700,1775181048196,-151.0,0.00021918,2]
[419328701,1775181048205,-151.0,0.00021918,2]
[419328702,1775181048214,-4426.599719,0.00021918,2]
[419328703,1775181048223,-4426.599719,0.00021918,2]
[419328704,1775181048233,-4426.599719,0.00021918,2]
[419328705,1775181048242,-164.200657,0.00021918,2]
[419328706,1775181048252,-4426.599719,0.00021918,2]
[419328707,1775181048261,-4426.599719,0.00021918,2]
[419328708,1775181048270,-4426.599719,0.00021918,2]
[419328709,1775181048279,-4426.599719,0.00021918,2]
[419328710,1775181048288,-4426.599719,0.00021918,2]
[419328711,1775181048297,-4426.599719,0.00021918,2]
[419328712,1775181048306,-4426.599719,0.00021918,2]
[419328713,1775181048316,-4426.599719,0.00021918,2]
[419328714,1775181048325,-4426.5997216,0.00021918,2]
[419328715,1775181048334,-159.58063,0.00021918,2]
[419328716,1775181048342,-159.58063,0.00021918,2]
[419328717,1775181048351,-159.58063,0.00021918,2]
[419328718,1775181048360,-536.74,0.00021918,2]
[419328719,1775181048371,-536.74,0.00021918,2]
[419328720,1775181048380,-536.74,0.00021918,2]
[419328721,1775181048390,-1011.96,0.00021918,2]
[419328722,1775181048399,-1423.7,0.00021969,2]
[419328723,1775181048408,-500.0,0.00021973,2]
[419328724,1775181048417,-500.0,0.00021973,2]
[419328725,1775181048426,-500.0,0.00021973,2]
[419328726,1775181048435,-335.28265136,0.00021973,2]
[419328727,1775181048450,-164.71734864,0.00021973,2]
[419328728,1775181048459,-500.0,0.00021973,2]
[419328729,1775181048468,-500.0,0.00021973,2]
[419328730,1775181048477,-426.30847705,0.00021973,2]
[419328731,1775181048486,-500.0,0.00021973,2]
[419328732,1775181048496,-500.0,0.00021973,2]
[419328733,1775181048505,-500.0,0.00021973,2]
[419328734,1775181048514,-470.05438779,0.00021973,2]
[419328735,1775181048523,-500.0,0.00021973,2]
[419328736,1775181048532,-500.54101606,0.00021973,2]
[419328737,1775181048542,-500.0,0.00021973,2]
[419328738,1775181048551,-507.35924093,0.00021973,2]
[419328739,1775181048560,-150.11277093,0.00021973,2]
[419328740,1775181048569,-500.0,0.00021973,2]
[419328741,1775181048579,-500.0,0.00021973,2]
[419328742,1775181048589,-500.0,0.00021973,2]
[419328743,1775181048598,-500.0,0.00021973,2]
[419328744,1775181048607,-507.53351123,0.00021973,2]
[419328745,1775181048617,-500.0,0.00021973,2]
[419328746,1775181048627,-377.11943782,0.00021973,2]
[419328747,1775181048636,-176.44735844,0.00021973,2]
[419328750,1775181681505,-2609.46840274,0.00013194,2]
[419328757,1775182233263,-3446.76645159,9.702e-05,2]
[419328758,1775182233317,-1553.23354841,9.702e-05,2]
[419328759,1775182233327,-300.0,9.8e-05,2]
[419328761,1775182233336,-557.0,9.801e-05,2]
[419328763,1775182233346,-941.29133408,0.0001,2]
[419328764,1775182233356,-420.0,0.0001078,2]
[419328766,1775182233365,-587.0,0.00011858,2]
[419328768,1775182233376,-336.88266396,0.000125,2]
[419328769,1775182233385,-251.25133453,0.00012949,2]
[419328770,1775182233394,-1000.0,0.00013699,2]
[419328771,1775182233403,-500.0,0.00016406,2]
[419328772,1775182233413,-24273.3954837,0.000169,2]
[419328817,1775182238468,-557.07,9.605e-05,2]
[419328820,1775182238521,-4442.93,9.605e-05,2]
[419328821,1775182238531,-28744.05928834,0.000169,2]
[419328822,1775182238543,-2816.14990822,0.000169,2]
[419328823,1775182238552,-500.0,0.0001727,2]
[419328824,1775182238561,-6919.95584279,0.00018,2]
[419328825,1775182238571,-600.61899365,0.00018,15]
[419328826,1775182238580,-500.0,0.00018133,2]
[419328827,1775182238589,-504.86845739,0.0001904,2]
[419328828,1775182238598,-949.2,0.00020411,2]
[419328829,1775182238608,-949.2,0.00020869,2]
[419328830,1775182238617,-210.0,0.000209,2]
[419328831,1775182238627,-500.0,0.00020987,2]
[419328832,1775182238636,-621.78829552,0.00020987,2]
[419328833,1775182238645,-606.28666992,0.00020987,2]
[419328834,1775182238657,-1880.86651217,0.00020987,2]
[419328835,1775182238666,-1053.91287127,0.00021,2]
[419328836,1775182238678,-1447.62442233,0.00021,2]
[419328890,1775182246574,-498.4627064,0.00021,2]
[419328891,1775182246583,-86.52765532,0.00021,2]
[419328894,1775182246842,-916.64718786,0.00021,2]
[419328895,1775182246852,-386.96598911,0.00021,5]
[419328936,1775183432784,-1828.60152261,0.00012106,2]
[419328938,1775183432796,-586.94081868,0.00012106,2]
[419329018,1775183446604,-2584.45765871,0.00012106,2]
[419329021,1775183446614,-591.0,0.00012106,2]
[419329023,1775183446624,-5000.0,0.00012228,2]
[419329025,1775183446633,-156.0,0.00013699,2]
[419329027,1775183446642,-716.3690932,0.00013699,2]
[419329029,1775183446653,-283.6309068,0.00013699,2]
[419329031,1775183446662,-500.3171176,0.00016285,2]
[419329033,1775183446671,-1468.3118868,0.00016684,2]
[419329035,1775183446682,-2007.2447829,0.00016684,2]
[419329037,1775183446691,-20215.3340652,0.00016684,2]
[419329039,1775183446700,-150.5759197,0.00016684,2]
[419329041,1775183446709,-215.2831827,0.00017084,2]
[419329043,1775183446718,-177.544643,0.00017987,2]
[419329045,1775183446727,-633.3163859,0.00018807,2]
[419329047,1775183446736,-500.0,0.00018854,2]
[419329049,1775183446746,-500.0,0.00018854,2]
[419329051,1775183446755,-500.0,0.00018854,2]
[419329053,1775183446764,-500.0,0.00018854,2]
[419329055,1775183446773,-500.0,0.00018854,2]
[419329057,1775183446782,-500.0,0.00018854,2]
[419329059,1775183446791,-500.0,0.00018854,2]
[419329061,1775183446800,-217.58641133,0.00018854,2]
[419329063,1775183446809,-500.0,0.00018854,2]
[419329065,1775183446818,-500.0,0.00018854,2]
[419329067,1775183446827,-500.0,0.00018854,2]
[419329069,1775183446836,-500.0,0.00018854,2]
[419329071,1775183446846,-500.0,0.00018854,2]
[419329073,1775183446855,-500.0,0.00018854,2]
[419329075,1775183446864,-500.0,0.00018854,2]
[419329077,1775183446873,-500.0,0.00018854,2]
[419329079,1775183446882,-500.0,0.00018854,2]
[419329081,1775183446892,-593.58362181,0.00018854,2]
[419329083,1775183446901,-500.0,0.00018854,2]
[419329084,1775183446911,-500.0,0.00018854,2]
[419329085,1775183446921,-500.0,0.00018854,2]
[419329086,1775183446931,-500.0,0.00018854,2]
[419329087,1775183446940,-500.0,0.00018854,2]
[419329088,1775183446949,-500.0,0.00018854,2]
[419329089,1775183446958,-500.0,0.00018854,2]
[419329090,1775183446967,-500.0,0.00018854,2]
[419329091,1775183446976,-500.0,0.00018854,2]
[419329092,1775183446985,-500.0,0.00018854,2]
[419329093,1775183446994,-500.0,0.00018854,2]
[419329094,1775183447005,-500.0,0.00018854,2]
[419329095,1775183447015,-500.0,0.00018854,2]
[419329096,1775183447024,-500.0,0.00018854,2]
[419329097,1775183447033,-500.0,0.00018854,2]
[419329098,1775183447042,-500.0,0.00018854,2]
[419329099,1775183447051,-500.0,0.00018854,2]
[419329100,1775183447061,-500.0,0.00018854,2]
[419329101,1775183447070,-500.0,0.00018854,2]
[419329102,1775183447079,-500.0,0.00018854,2]
[419329103,1775183447089,-285.88634284,0.00018854,2]
[419329104,1775183447101,-500.0,0.00018854,2]
[419329105,1775183447110,-500.0,0.00018854,2]
[419329106,1775183447119,-500.0,0.00018854,2]
[419329107,1775183447129,-500.0,0.00018854,2]
[419329108,1775183447235,-500.0,0.00018854,2]
[419329109,1775183447245,-500.0,0.00018854,2]
[419329110,1775183447255,-500.0,0.00018854,2]
[419329111,1775183447264,-500.0,0.00018854,2]
[419329112,1775183447274,-500.0,0.00018854,2]
[419329113,1775183447283,-500.0,0.00018854,2]
[419329114,1775183447293,-500.0,0.00018856,2]
[419329115,1775183447302,-20215.3340652,0.00018858,2]
[419329116,1775183447312,-2007.2447829,0.00018872,2]
[419329117,1775183447321,-500.0,0.00018873,2]
[419329118,1775183447331,-343.51261953,0.00018873,2]
[419329119,1775183447340,-500.0,0.00018873,2]
[419329120,1775183447352,-500.0,0.00018873,2]
[419329121,1775183447361,-500.0,0.00018873,2]
[419329122,1775183447371,-500.0,0.00018873,2]
[419329123,1775183447380,-1468.3118868,0.0001888,2]
[419329124,1775183447389,-500.0,0.0001913,2]
[419329125,1775183447399,-500.0,0.000192,2]
[419329126,1775183447409,-503.91544019,0.000192,2]
[419329127,1775183447419,-500.0,0.00019225,2]
[419329128,1775183447430,-500.0,0.00019225,2]
[419329129,1775183447439,-426.7389837,0.00019225,2]
[419329130,1775183447448,-500.0,0.00019225,2]
[419329131,1775183447457,-500.0,0.00019225,2]
[419329132,1775183447466,-500.0,0.00019225,2]
[419329133,1775183447475,-500.0,0.00019225,2]
[419329134,1775183447484,-500.0,0.00019225,2]
[419329135,1775183447494,-500.0,0.00019225,2]
[419329136,1775183447503,-500.0,0.00019225,2]
[419329137,1775183447513,-400.0,0.00019225,2]
[419329138,1775183447522,-500.0,0.00019225,2]
[419329139,1775183447531,-623.8335351,0.00019225,2]
[419329140,1775183447541,-500.0,0.00019225,2]
[419329141,1775183447550,-500.0,0.00019225,2]
[419329142,1775183447560,-500.0,0.00019225,2]
[419329143,1775183447570,-500.0,0.00019225,2]
[419329144,1775183447579,-500.0,0.00019225,2]
[419329145,1775183447590,-500.0,0.00019225,2]
[419329146,1775183447600,-500.0,0.00019225,2]
[419329147,1775183447610,-500.0,0.00019225,2]
[419329148,1775183447620,-500.0,0.00019225,2]
[419329149,1775183447630,-500.0,0.00019225,2]
[419329150,1775183447640,-150.5759197,0.00019251,2]
[419329151,1775183447650,-500.0,0.00019273,2]
[419329152,1775183447659,-501.87933804,0.00019273,2]
[419329153,1775183447669,-500.0,0.00019404,2]
[419329154,1775183447679,-1000.0,0.00019421,2]
[419329155,1775183447688,-1000.0,0.00019421,2]
[419329156,1775183447698,-1000.0,0.00019421,2]
[419329157,1775183447707,-1000.0,0.00019421,2]
[419329158,1775183447717,-1000.0,0.00019421,2]
[419329159,1775183447726,-500.0,0.00019678,2]
[419329160,1775183447736,-1000.0,0.00019748,2]
[419329161,1775183447745,-518.60664214,0.00019773,2]
[419329162,1775183447754,-500.0,0.00019773,2]
[419329163,1775183447764,-1000.0,0.00019821,2]
[419329164,1775183447774,-326.81358074,0.00019831,2]
[419329165,1775183447783,-265.03425743,0.00019831,2]
[419329166,1775183447792,-413.70191121,0.00019831,2]
[419329167,1775183447802,-483.26458893,0.00019952,2]
[419329168,1775183447811,-621.51295445,0.00019968,2]
[419329169,1775183447821,-1003.62654282,0.00019968,2]
[419329170,1775183447830,-1504.56761441,0.00019968,2]
[419329171,1775183447841,-1500.0,0.00019968,2]
[419329172,1775183447850,-1500.0,0.00019968,2]
[419329173,1775183447860,-455.2232197,0.00020046,2]
[419329174,1775183447869,-833.57331076,0.00020296,2]
[419329175,1775183447879,-200.0,0.00020296,2]
[419329176,1775183447888,-151.0,0.00020296,2]
[419329177,1775183447898,-151.0,0.00020296,2]
[419329178,1775183447907,-1000.0,0.00020321,2]
[419329179,1775183447917,-5888.0,0.00020356,2]
[419329180,1775183447926,-163.344973,0.00020356,2]
[419329181,1775183447935,-1500.0,0.00020369,2]
[419329182,1775183447944,-791.0,0.00020407,2]
[419329183,1775183447954,-151.0,0.00020498,2]
[419329184,1775183447964,-151.0,0.00020498,2]
[419329185,1775183447973,-151.0,0.00020498,2]
[419329186,1775183447982,-151.0,0.00020498,2]
[419329187,1775183447992,-151.0,0.00020498,2]
[419329188,1775183448002,-191.171086,0.00020498,2]
[419329189,1775183448011,-5888.0,0.00020498,2]
[419329190,1775183448021,-2000.0,0.00020516,2]
[419329191,1775183448030,-2000.0,0.00020516,2]
[419329192,1775183448040,-168.0,0.0002061,2]
[419329193,1775183448049,-266.74773176,0.00020773,2]
[419329194,1775183448059,-500.0,0.00020773,2]
[419329195,1775183448068,-500.0,0.00020773,2]
[419329196,1775183448077,-500.0,0.00020773,2]
[419329197,1775183448087,-500.0,0.00020773,2]
[419329198,1775183448096,-500.0,0.00020773,2]
[419329199,1775183448106,-198.578,0.00020797,2]
[419329200,1775183448116,-107545.95381926,0.00020799,2]
[419329201,1775183448125,-151.0,0.00020799,2]
[419329202,1775183448134,-151.0,0.00020799,2]
[419329203,1775183448143,-151.0,0.00020799,2]
[419329204,1775183448153,-151.0,0.00020799,2]
[419329205,1775183448163,-151.0,0.00020799,2]
[419329206,1775183448172,-151.0,0.00020799,2]
[419329207,1775183448182,-5888.0,0.00020827,2]
[419329208,1775183448192,-42270.0,0.00020841,2]
[419329209,1775183448201,-151.0,0.00020843,2]
[419329210,1775183448211,-151.0,0.00020843,2]
[419329211,1775183448221,-5888.0,0.00020843,2]
[419329212,1775183448232,-791.0,0.00020865,2]
[419329213,1775183448242,-1500.0,0.00020869,2]
[419329214,1775183448252,-586.2564603,0.00020874,2]
[419329215,1775183448262,-1055.26162855,0.00020874,2]
[419329216,1775183448272,-1876.02067297,0.00020874,2]
[419329217,1775183448282,-2931.28230152,0.00020874,2]
[419329218,1775183448292,-227.23676738,0.00020874,2]
[419329219,1775183448302,-259.69916272,0.00020874,2]
[419329220,1775183448312,-405.37416181,0.00020874,2]
[419329221,1775183448322,-1957.856,0.00020889,2]
[419329222,1775183448332,-621.78829552,0.00020889,2]
[419329223,1775183448342,-500.0,0.00020889,2]
[419329224,1775183448352,-2487.15318209,0.00020889,2]
[419329225,1775183448362,-454.8264291,0.00020902,2]
[419329226,1775183448371,-324.9815827,0.00020902,2]
[419329227,1775183448381,-2000.0,0.00020917,2]
[419329228,1775183448391,-200.0,0.00020939,2]
[419329229,1775183448400,-164.92,0.0002094,2]
[419329230,1775183448411,-151.0,0.00020942,2]
[419329231,1775183448421,-151.0,0.00020942,2]
[419329232,1775183448432,-2030.296672,0.00020944,2]
[419329233,1775183448441,-644.79446246,0.00020944,2]
[419329234,1775183448451,-500.0,0.00020973,2]
[419329235,1775183448460,-500.0,0.00020973,2]
[419329236,1775183448469,-2105.41764886,0.00020999,2]
[419329237,1775183448478,-668.65185757,0.00020999,2]
[419329238,1775183448487,-8628.01341802,0.00021,5]
[419329239,1775183448496,-151.0,0.00021,2]
[419329240,1775183448506,-151.0,0.00021,2]
[419329241,1775183448515,-151.0,0.00021,2]
[419329242,1775183448524,-220.889804,0.00021,2]
[419329243,1775183448533,-321.862315,0.00021008,2]
[419329244,1775183448543,-3000.0,0.0002101,2]
[419329245,1775183448552,-3000.0,0.0002102,2]
[419329246,1775183448562,-180.09004502,0.00021022,2]
[419329247,1775183448571,-3000.0,0.0002103,2]
[419329248,1775183448580,-20215.3340652,0.00021032,2]
[419329249,1775183448590,-151.0,0.00021032,2]
[419329250,1775183448599,-261.871961,0.00021032,2]
[419329251,1775183448608,-3000.0,0.0002104,2]
[419329252,1775183448617,-160.0,0.0002105,7]
[419329253,1775183448626,-491.899211,0.0002105,7]
[419329254,1775183448636,-823.798423,0.0002105,7]
[419329255,1775183448645,-5100.408121,0.0002105,2]
[419329256,1775183448654,-2183.31810187,0.00021054,2]
[419329257,1775183448663,-693.3919763,0.00021054,2]
[419329258,1775183448672,-2007.2447829,0.0002106,2]
[419329259,1775183448682,-2500.0,0.00021064,2]
[419329260,1775183448692,-2500.0,0.00021064,2]
[419329261,1775183448701,-500.0,0.00021067,2]
[419329262,1775183448711,-1468.3118868,0.00021077,2]
[419329263,1775183448720,-438.72241837,0.00021109,2]
[419329264,1775183448730,-719.04747942,0.00021109,2]
[419329265,1775183448739,-745.65223616,0.00021164,2]
[419329266,1775183448748,-773.2413689,0.00021219,2]
[419329267,1775183448757,-5888.0,0.00021231,2]
[419329268,1775183448766,-151.0,0.00021231,2]
[419329269,1775183448775,-151.0,0.00021231,2]
[419329270,1775183448784,-151.0,0.00021231,2]
[419329271,1775183448793,-801.85129955,0.00021274,2]
[419329272,1775183448802,-1000.0,0.00021321,2]
[419329273,1775183448812,-1000.0,0.00021321,2]
[419329274,1775183448893,-908.15938371,0.00021321,2]
[419329275,1775183448903,-1001.2200783,0.00021321,2]
[419329276,1775183448913,-1000.0,0.00021321,2]
[419329277,1775183448923,-791.0,0.00021323,2]
[419329278,1775183448934,-160.0,0.00021344,7]
[419329279,1775183448943,-572.462217,0.00021344,7]
[419329280,1775183448952,-984.924435,0.00021344,7]
[419329281,1775183448962,-1105.0,0.00021362,2]
[419329282,1775183448972,-1342.796565,0.00021417,2]
[419329283,1775183448981,-500.0,0.00021437,2]
[419329284,1775183448990,-2579.17784983,0.00021437,2]
[419329285,1775183448999,-2500.0,0.00021465,2]
[419329286,1775183449009,-151.0,0.000215,2]
[419329287,1775183449019,-1678.012868,0.000215,2]
[419329288,1775183449029,-1105.0,0.000215,2]
[419329289,1775183449039,-5888.0,0.00021517,2]
[419329290,1775183449049,-151.0,0.00021517,2]
[419329291,1775183449058,-151.0,0.00021517,2]
[419329292,1775183449068,-1000.0,0.00021521,2]
[419329293,1775183449078,-1007.095708,0.00021521,2]
[419329294,1775183449087,-1105.0,0.00021559,2]
[419329295,1775183449096,-1105.0,0.00021597,2]
[419329296,1775183449105,-198.318,0.00021602,2]
[419329297,1775183449115,-3000.0,0.00021612,2]
[419329298,1775183449125,-1591.59857234,0.00021612,2]
[419329299,1775183449134,-1000.0,0.00021615,2]
[419329300,1775183449144,-1105.0,0.00021691,2]
[419329301,1775183449153,-324.9587121,0.00021699,2]
[419329302,1775183449163,-1105.0,0.00021705,2]
[419329303,1775183449173,-1066.67993363,0.00021723,2]
[419329304,1775183449184,-151.0,0.00021724,2]
[419329305,1775183449193,-455.2232197,0.00021724,2]
[419329306,1775183449203,-655904.70280293,0.0002178,2]
[419329307,1775183449212,-151.0,0.0002178,2]
[419329308,1775183449222,-151.0,0.0002178,2]
[419329309,1775183449231,-151.0,0.0002178,2]
[419329310,1775183449241,-791.0,0.00021781,2]
[419329311,1775183449250,-1105.0,0.00021816,2]
[419329312,1775183449259,-150.5759197,0.00021818,2]
[419329313,1775183449268,-583.11619651,0.00021868,2]
[419329314,1775183449278,-229.34709534,0.00021868,2]
[419329315,1775183449287,-501.90708087,0.00021868,2]
[419329316,1775183449296,-4261.08228605,0.000219,2]
[419329317,1775183449305,-151.0,0.00021918,2]
[419329318,1775183449314,-151.499899,0.00021918,2]
[419329319,1775183449323,-151.0,0.00021918,2]
[419329320,1775183449332,-151.0,0.00021918,2]
[419329321,1775183449342,-256.026639,0.00021918,2]
[419329322,1775183449351,-151.0,0.00021918,2]
[419329323,1775183449360,-151.0,0.00021918,2]
[419329324,1775183449370,-151.0,0.00021918,2]
[419329325,1775183449379,-151.0,0.00021918,2]
[419329326,1775183449388,-151.0,0.00021918,2]
[419329327,1775183449398,-151.0,0.00021918,2]
[419329328,1775183449407,-151.0,0.00021918,2]
[419329329,1775183449417,-151.0,0.00021918,2]
[419329330,1775183449426,-151.0,0.00021918,2]
[419329331,1775183449437,-151.0,0.00021918,2]
[419329332,1775183449445,-151.0,0.00021918,2]
[419329333,1775183449455,-151.0,0.00021918,2]
[419329334,1775183449465,-151.0,0.00021918,2]
[419329335,1775183449474,-151.0,0.00021918,2]
[419329336,1775183449483,-151.0,0.00021918,2]
[419329337,1775183449492,-151.0,0.00021918,2]
[419329338,1775183449501,-151.0,0.00021918,2]
[419329339,1775183449510,-151.0,0.00021918,2]
[419329340,1775183449519,-151.0,0.00021918,2]
[419329341,1775183449529,-151.847239,0.00021918,2]
[419329342,1775183449539,-151.0,0.00021918,2]
[419329343,1775183449548,-151.0,0.00021918,2]
[419329344,1775183449558,-151.0,0.00021918,2]
[419329345,1775183449567,-151.0,0.00021918,2]
[419329346,1775183449578,-151.0,0.00021918,2]
[419329347,1775183449587,-287.6579,0.00021918,2]
[419329348,1775183449597,-151.0,0.00021918,2]
[419329349,1775183449606,-151.0,0.00021918,2]
[419329350,1775183449615,-151.0,0.00021918,2]
[419329351,1775183449624,-561.354423,0.00021918,2]
[419329352,1775183449634,-151.0,0.00021918,2]
[419329353,1775183449643,-561.354423,0.00021918,2]
[419329354,1775183449652,-151.0,0.00021918,2]
[419329355,1775183449662,-561.354423,0.00021918,2]
[419329356,1775183449671,-151.0,0.00021918,2]
[419329357,1775183449682,-561.354423,0.00021918,2]
[419329358,1775183449691,-561.354423,0.00021918,2]
[419329359,1775183449700,-561.354423,0.00021918,2]
[419329360,1775183449709,-151.0,0.00021918,2]
[419329361,1775183449718,-151.0,0.00021918,2]
[419329362,1775183449727,-151.0,0.00021918,2]
[419329363,1775183449737,-561.354423,0.00021918,2]
[419329364,1775183449746,-561.354423,0.00021918,2]
[419329365,1775183449755,-151.0,0.00021918,2]
[419329366,1775183449765,-561.354423,0.00021918,2]
[419329367,1775183449774,-213.36255,0.00021918,2]
[419329368,1775183449783,-561.354423,0.00021918,2]
[419329369,1775183449792,-561.354423,0.00021918,2]
[419329370,1775183449801,-561.354423,0.00021918,2]
[419329371,1775183449810,-487.363248,0.00021918,2]
[419329372,1775183449820,-487.363248,0.00021918,2]
[419329373,1775183449829,-487.363248,0.00021918,2]
[419329374,1775183449838,-487.363248,0.00021918,2]
[419329375,1775183449847,-487.363248,0.00021918,2]
[419329376,1775183449856,-487.363248,0.00021918,2]
[419329377,1775183449865,-487.363248,0.00021918,2]
[419329378,1775183449875,-487.363248,0.00021918,2]
[419329379,1775183449885,-487.363248,0.00021918,2]
[419329380,1775183449894,-487.363248,0.00021918,2]
[419329381,1775183449903,-487.363248,0.00021918,2]
[419329382,1775183449913,-487.363248,0.00021918,2]
[419329383,1775183449922,-2147.615022,0.00021918,2]
[419329384,1775183449932,-2147.615022,0.00021918,2]
[419329385,1775183449941,-151.0,0.00021918,2]
[419329386,1775183449950,-151.0,0.00021918,2]
[419329387,1775183449959,-2147.615022,0.00021918,2]
[419329388,1775183449968,-2147.615022,0.00021918,2]
[419329389,1775183449978,-2147.615022,0.00021918,2]
[419329390,1775183449987,-2147.615022,0.00021918,2]